[Event "GER-ch Youth-ODJM 2022 A"]
[Site "Willingen"]
[Date "2022.06.10"]
[Round "8.14"]
[White "Pick, Max"]
[Black "Kracht, Raphael"]
[Result "1/2-1/2"]
[ECO "C67"]
[WhiteElo "1841"]
[BlackElo "2086"]
[Annotator "TA"]
[PlyCount "134"]
[EventDate "2022.06.05"]
[EventType "swiss"]
[EventRounds "9"]
[EventCountry "GER"]
[SourceTitle "playchess.com"]
[Source "ChessBase"]
[SourceQuality "1"]
[TimeControl "40/4500+30:900+30"]

{[%evp 11,134,0,0,-11,-6,-28,-33,-37,-7,-19,16,-21,0,-6,49,45,41,-20,-23,-28,-27,-26,-17,-17,7,-10,0,1,13,0,0,-14,11,0,15,10,14,0,13,0,0,0,10,0,50,45,95,3,8,6,4,0,0,0,0,0,0,0,0,-5,0,0,0,-20,-20,-22,-10,-10,-10,-11,-7,-8,-4,-25,-5,-14,0,-12,0,-2,-2,-22,-24,-34,-2,-37,0,-19,-2,-19,-20,-20,0,0,0,-16,-14,-24,-6,-20,0,-10,0,-8,0,-24,-22,-32,0,-8,-7,-81,0,-8,-8,-8,-7,-70,-8,-24,-7,-40,-7,-10,0]} 1. e4 {[%emt 0:00:00]} e5 {[%emt 0:00:00]} 2. Nf3 {[%emt 0:00:00]} Nc6 {[%emt 0:00:00]} 3. Bb5 {[%emt 0:00:00]} Nf6 {[%emt 0:00:00]} 4. O-O {[%emt 0:00:00]} Nxe4 {[%emt 0:00:00]} 5. Re1 {[%emt 0:00:00][%cal Bf1e1,Be1e5,Be5a5][%mdl 32]} Nd6 {[%emt 0:00:00]} 6. Bxc6 {[%emt 0:00:00]} dxc6 {[%emt 0:00:00]} 7. Rxe5+ {[%emt 0:00:00] C67: Ruy Lopez: Berlin Defence: 4 0-0 Nxe4.} Be7 {[%emt 0:00:00]} 8. Qe2 {[%emt 0:00:00]} Nf5 {[%emt 0:00:00]} 9. d3 {[%emt 0:00:00] Black is slightly better.} Be6 {[%emt 0:00:00]} 10. Nc3 {[%emt 0:00:00] [#]} Qd7 $146 {[%emt 0:00:00]} ({Predecessor:} 10... O-O 11. Bd2 Bf6 12. Re4 Re8 13. Qf1 c5 14. Rae1 Nd4 15. Nxd4 cxd4 16. Ne2 Qd5 {1-0 (69) Armanda,I (2350)-Berke,A (2075) Bosnjaci 2015}) 11. Bf4 {[%emt 0:07:15]} O-O-O {[%emt 0:00:00]} 12. Ra5 {[%emt 0:02:53]} Nd4 {[%emt 0:05:55]} (12... Kb8 $11) 13. Nxd4 $14 {[%emt 0:06:29]} Qxd4 {[%emt 0:00:05]} 14. Qe5 {[%emt 0:08:41]} ({White should try} 14. Ra4 $14 Qb6 15. Rb1) 14... Qxe5 $11 {[%emt 0:01:25]} 15. Rxe5 {[%emt 0:01:01]} Bd6 {[%emt 0:02:15]} 16. Re4 {[%emt 0:00:16]} Bf5 {[%emt 0:01:21]} 17. Rd4 {[%emt 0:01:39]} c5 {[%emt 0:06:24]} 18. Rc4 {[%emt 0:00:55]} Be6 {[%emt 0:00:40]} 19. Re4 {[%emt 0:00:42]} b6 {[%emt 0:01:08]} 20. Bxd6 {[%emt 0:02:06]} cxd6 {[%emt 0:00:31]} 21. Rae1 {[%emt 0:00:52]} h6 {[%emt 0:07:02]} 22. Ne2 {[%emt 0:01:50]} g5 {[%emt 0:00:14] Against Nf4} 23. a3 {[%emt 0:06:10]} Kd7 {[%emt 0:05:18]} 24. Nc3 {[%emt 0:08:21]} Rhe8 {[%emt 0:04:00]} 25. f3 {[%emt 0:13:32]} a6 {[%emt 0:06:00]} 26. Kf2 {[%emt 0:04:51]} b5 {[%emt 0:00:36]} 27. R4e2 {[%emt 0:05:07]} Rb8 {[%emt 0:11:28]} (27... d5 $11) 28. Ne4 $14 {[%emt 0:02:34] Nf6+ is the strong threat.} Rec8 {[%emt 0:00:07] [#]} (28... Ke7 $14) 29. c3 {[%emt 0:02:56]} ({White should play} 29. h4 $1 $16) 29... d5 $11 {[%emt 0:02:12]} 30. Nf6+ {[%emt 0:00:29]} Kd6 {[%emt 0:00:03]} 31. Rd2 {[%emt 0:02:50]} a5 {[%emt 0:02:42]} 32. d4 {[%emt 0:00:49]} c4 {[%emt 0:00:19]} 33. g4 {[%emt 0:02:23][%cal Oh2h4]} b4 {[%emt 0:01:35]} 34. axb4 {[%emt 0:00:28]} axb4 {[%emt 0:00:07]} 35. Ra1 {[%emt 0:01:20]} Ke7 {[%emt 0:02:11]} (35... Ra8 {keeps more tension.} 36. Re1 Ra2 37. Rde2 Rca8) 36. Nh5 {[%emt 0:00:08]} Ra8 {[%emt 0:00:19]} 37. Rxa8 {[%emt 0:04:45]} Rxa8 {[%emt 0:00:04]} 38. cxb4 {[%emt 0:00:07][%mdl 4096] Endgame KRB-KRN} Rb8 {[%emt 0:00:17]} 39. Ng3 {[%emt 0:00:27]} Rxb4 {[%emt 0:00:05]} 40. Ne2 {[%emt 0:00:30]} Kd6 {[%emt 0:02:01]} 41. Nc3 {[%emt 0:00:00]} Kc6 {[%emt 0:00:00]} 42. Ke3 {[%emt 0:00:00]} f6 {[%emt 0:00:00]} 43. Kf2 {[%emt 0:00:00]} Bf7 {[%emt 0:00:00]} 44. Ke3 {[%emt 0:00:00]} Bg6 {[%emt 0:00:00]} 45. Kf2 {[%emt 0:00:00]} Kd6 {[%emt 0:00:00]} 46. Ke3 {[%emt 0:00:00]} Rb8 {[%emt 0:00:00]} 47. Kf2 {[%emt 0:00:00]} Ra8 {[%emt 0:00:00]} 48. Ke3 {[%emt 0:01:05]} Kc6 {[%emt 0:00:00]} 49. Kf2 {[%emt 0:01:43]} Bd3 {[%emt 0:00:00]} 50. Ke3 {[%emt 0:01:16]} f5 {[%emt 0:00:00]} 51. Kf2 {[%emt 0:02:21]} Ra1 {[%emt 0:00:00]} 52. Rd1 {[%emt 0:00:51]} Ra8 {[%emt 0:00:00]} 53. Rd2 {[%emt 0:00:24]} Rf8 {[%emt 0:00:00] [#] Strongly threatening ...fxg4.} 54. Ke3 {[%emt 0:04:24]} Rf7 {[%emt 0:07:15]} 55. h3 {[%emt 0:04:33]} Ra7 {[%emt 0:01:44]} 56. Kf2 {[%emt 0:01:41]} Ra8 {[%emt 0:03:23]} 57. Kg3 {[%emt 0:02:27]} Rf8 {[%emt 0:00:45]} 58. Rf2 {[%emt 0:01:24]} f4+ {[%emt 0:07:14]} 59. Kg2 {[%emt 0:00:35][%cal Oh3h4]} Re8 {[%emt 0:00:50]} (59... h5 $5) 60. Rd2 {[%emt 0:00:53]} Re1 {[%emt 0:01:10]} 61. Rd1 {[%emt 0:01:03]} (61. Kf2 $11 Rf1+ 62. Kg2) 61... Re7 {[%emt 0:08:07]} (61... Rxd1 $17 62. Nxd1 Kb5) 62. Kf2 {[%emt 0:00:18]} Rb7 {[%emt 0:02:27]} 63. Rd2 {[%emt 0:00:14]} Kd6 {[%emt 0:00:05]} 64. Ke1 {[%emt 0:00:55]} ({Better is} 64. Kg2 $11) 64... Rb8 {[%emt 0:04:51]} (64... h5 $1 $15) 65. Kf2 {[%emt 0:00:09]} Kc6 {[%emt 0:00:05]} 66. Ke1 {[%emt 0:00:11]} Rd8 {[%emt 0:00:05]} 67. Kf2 {[%emt 0:01:57]} Rb8 {Weighted Error Value: White=0.12 (very precise) /Black=0.12 (very precise)} 1/2-1/2

[Event "GER-ch Youth-ODJM 2022 A"]
[Site "Willingen"]
[Date "2022.06.10"]
[Round "8.15"]
[White "Irkilmez, Yakub"]
[Black "Kliashtornyi, Arkadii"]
[Result "1-0"]
[ECO "E71"]
[WhiteElo "2169"]
[BlackElo "1755"]
[Annotator "TA"]
[PlyCount "145"]
[EventDate "2022.06.05"]
[EventType "swiss"]
[EventRounds "9"]
[EventCountry "GER"]
[SourceTitle "playchess.com"]
[Source "ChessBase"]
[SourceQuality "1"]
[TimeControl "40/4500+30:900+30"]

{[%evp 15,145,59,50,50,86,68,58,55,77,66,104,97,93,80,100,83,127,123,193,189,198,198,192,185,191,168,203,180,202,207,212,190,212,125,254,270,254,292,273,277,367,301,355,337,391,326,327,197,219,152,270,260,280,271,277,253,265,258,303,295,328,255,262,150,243,227,264,251,262,260,264,264,257,250,290,293,283,245,318,306,318,300,430,365,352,324,281,288,428,225,238,224,222,231,211,0,352,225,321,321,383,228,228,228,1046,937,1026,1008,1168,1139,1004,966,1279,1279,1277,1196,1198,1147,5111,1139,849,777,600,441,1233,1206,29980,29977,29997,29983,29998,29999]} 1. d4 {[%emt 0:00:00]} Nf6 {[%emt 0:00:00]} 2. c4 {[%emt 0:00:00]} g6 {[%emt 0:00:00]} 3. Nc3 {[%emt 0:00:00]} Bg7 {[%emt 0:00:00]} 4. e4 {[%emt 0:00:00]} d6 {[%emt 0:00:00]} 5. h3 {[%emt 0:00:00]} O-O {[%emt 0:00:00]} 6. Bg5 {[%emt 0:00:00]} h6 {[%emt 0:00:00]} 7. Be3 {[%emt 0:00:00]} e5 {[%emt 0:00:00]} 8. d5 {[%emt 0:00:00]} a5 {[%emt 0:00:03] was the old line (8...Na6).} 9. Qd2 {[%emt 0:00:00] E71: King's Indian: 4 e4 d6 5 h3.} Kh7 {[%emt 0:03:02][%cal Of6e4]} 10. Bd3 {[%emt 0:00:00]} Na6 {[%emt 0:01:15]} 11. Nge2 {[%emt 0:00:00] White is slightly better.} Nc5 {[%emt 0:01:22]} 12. Bc2 {[%emt 0:00:00]} Ne8 {[%emt 0:06:12]} 13. g4 {[%emt 0:00:00]} Bd7 {[%emt 0:09:38]} 14. Ng3 {[%emt 0:12:48]} c6 {[%emt 0:14:06]} 15. O-O-O {[%emt 0:09:42]} cxd5 {[%emt 0:08:24] [#]} 16. exd5 $146 {[%emt 0:22:11]} ({Predecessor:} 16. Bxc5 dxc5 17. Qxd5 Nf6 18. Qxc5 Rc8 19. Qa7 Qc7 20. b3 a4 21. Kb2 Ra8 22. Qe3 {1-0 (51) Kazakova,A (1924)-Yapyndzhi,K Moscow 2009}) 16... f5 {[%emt 0:07:25]} (16... e4 $16 17. Ngxe4 Nxe4 18. Bxe4 (18. Nxe4 Rc8 $16) 18... a4) 17. h4 {[%emt 0:09:03]} f4 {[%emt 0:05:03]} 18. Bxc5 {[%emt 0:00:11][%cal Od2d3] Black must now prevent Qd3!} fxg3 {[%emt 0:02:50] [#]} 19. Qd3 $1 {[%emt 0:03:26]} Qf6 {[%emt 0:01:27]} 20. Ne4 {[%emt 0:07:50]} Qf7 {[%emt 0:02:50] [#]} 21. h5 $1 {[%emt 0:06:54]} Kg8 {[%emt 0:01:15] aiming for ...g2.} 22. Be3 $1 {[%emt 0:00:38] And now Rdg1 would win.} (22. Nxd6 Nxd6 23. Bxd6 gxf2 $1 24. Bxf8 (24. Qxg6 Qxg6 25. hxg6 Rf4 $15) (24. hxg6 $2 Qf4+ 25. Qd2 f1=Q $19) 24... Rxf8 25. Qxg6 (25. hxg6 $2 Qf4+ 26. Qd2 e4 $19) 25... Qxg6 26. hxg6 Bxg4 $11) 22... Bxg4 {[%emt 0:03:15]} 23. Rdg1 $36 {[%emt 0:01:23][%mdl 2048] White has strong initiative.} (23. hxg6 Qd7) 23... Bf3 {[%emt 0:07:15]} 24. hxg6 {[%emt 0:01:02]} (24. Nxg3 $18 e4 25. Nxe4 $1) 24... Qxg6 {[%emt 0:00:17]} (24... Qe7 $16) 25. Rxg3 $18 {[%emt 0:00:46]} Qxe4 {[%emt 0:01:59]} 26. Qxe4 {[%emt 0:00:46] Really sharp!} Bxe4 {[%emt 0:00:02]} 27. Bxe4 {[%emt 0:00:09]} Rf7 {[%emt 0:04:35]} 28. Rxh6 {[%emt 0:09:02]} Kf8 {[%emt 0:00:29]} 29. Rh4 {[%emt 0:00:39]} Rc8 {[%emt 0:00:56]} 30. b3 {[%emt 0:00:43]} b5 {[%emt 0:00:55]} 31. Bd3 {[%emt 0:00:08]} bxc4 {[%emt 0:00:07]} 32. Bxc4 {[%emt 0:00:29]} (32. Rxc4 Rxc4+ 33. bxc4 Nf6) 32... Rfc7 {[%emt 0:00:49]} (32... a4 $16 33. Kb1 (33. bxa4 Rfc7 $17) 33... axb3) 33. Kd2 {[%emt 0:00:54]} Nf6 {[%emt 0:01:54]} 34. a4 {[%emt 0:01:03]} Re7 {[%emt 0:02:06]} 35. Rg1 {[%emt 0:01:53]} Kf7 {[%emt 0:00:43]} 36. Ke2 {[%emt 0:00:16]} Rg8 {[%emt 0:01:23]} 37. Rg3 {[%emt 0:01:17]} Rc8 {[%emt 0:00:18]} 38. Rg2 {[%emt 0:00:17]} Rg8 {[%emt 0:00:23]} 39. Kd2 {[%emt 0:00:52]} ({Better is} 39. Rg1 $18) 39... Rc8 {[%emt 0:00:09]} (39... Bh6 $16 40. Rxg8 Bxe3+ 41. fxe3 (41. Kxe3 Kxg8 42. Kd3 Kg7 $16) 41... Kxg8) 40. Rg1 {[%emt 0:00:34]} Rg8 {[%emt 0:00:15]} 41. Rb1 {[%emt 0:00:00]} Rb8 {[%emt 0:00:00]} 42. Ke2 {[%emt 0:00:00]} Kf8 {[%emt 0:00:00]} 43. Bc1 {[%emt 0:00:00]} Reb7 {[%emt 0:00:00]} 44. Ba3 {[%emt 0:00:00]} Rd8 {[%emt 0:00:00]} 45. b4 {[%emt 0:08:02]} axb4 {[%emt 0:00:00]} 46. Rxb4 {[%emt 0:01:13]} Rxb4 {[%emt 0:00:00]} 47. Bxb4 {[%emt 0:00:05]} Ke7 {[%emt 0:00:00]} 48. a5 {[%emt 0:02:52]} Rb8 {[%emt 0:00:00]} (48... Rc8 {was called for.} 49. a6 Nh5) 49. Bc3 {[%emt 0:04:07]} Nd7 {[%emt 0:00:00]} 50. Rh7 {[%emt 0:01:15]} Kf8 {[%emt 0:00:00]} 51. Rh3 {[%emt 0:00:25]} Nc5 {[%emt 0:00:00]} (51... Ra8 {might work better.} 52. Bb5 Nc5) 52. Rf3+ {[%emt 0:02:23]} (52. a6 $142) 52... Ke7 {[%emt 0:00:00][%cal Oe5e4]} 53. Rg3 {[%emt 0:00:14]} Bf6 {[%emt 0:00:00]} 54. Rh3 {[%emt 0:00:30]} Bg7 {[%emt 0:00:00]} 55. Rh4 $2 {[%emt 0:00:41] Prevents Ne4.} (55. Rh7 $18 Kf6 56. Rh4) 55... Kf8 {[%emt 0:01:15][%mdl 8192]} (55... Nd7 $1 $11 56. Bd2 Nc5) 56. Bd2 {[%emt 0:00:37] Strongly threatening a6.} Bf6 {[%emt 0:00:57]} (56... Kf7 {is a better defense.} 57. Rh7 Kg8) 57. Rh3 {[%emt 0:00:33]} Ne4 {[%emt 0:00:59]} 58. Rb3 {[%emt 0:00:31] Prevents Rb2.} (58. Bh6+ $142 Bg7 59. a6) 58... Rxb3 {[%emt 0:00:01]} 59. Bxb3 {[%emt 0:00:08] Hoping for a6.} Nxd2 $2 {[%emt 0:00:05] [#]} (59... Bd8 60. a6 (60. Bh6+ Ke8 $18) 60... Bb6) 60. a6 $1 {[%emt 0:00:19]} Nxb3 {[%emt 0:00:56]} 61. a7 {[%emt 0:00:11]} Nd4+ {[%emt 0:00:09]} 62. Kd3 {[%emt 0:00:19]} Kf7 {[%emt 0:01:11]} 63. a8=Q {[%emt 0:00:07] White wants to mate with Ke4.} Be7 {[%emt 0:00:34]} 64. Qc8 {[%emt 0:00:26] Ke4 would kill now.} Nb3 {[%emt 0:02:26]} 65. Ke4 {[%emt 0:01:01] Threatening mate with Qf5+.} Nc5+ {[%emt 0:00:47]} 66. Kf3 {[%emt 0:00:20]} Kf6 {[%emt 0:00:47]} 67. Kg4 {[%emt 0:00:34]} (67. Qg8 $142 Kf5 68. Qf7+ Bf6 69. Qh5+ Bg5 70. Qh7+ Kf6 71. Qc7 e4+ 72. Kg4) 67... Kf7 {[%emt 0:00:09]} 68. Qh8 {[%emt 0:00:39]} Nd7 {[%emt 0:00:32]} 69. Qh5+ {[%emt 0:00:38]} Kf8 {[%emt 0:00:25]} (69... Kg7 $142 70. Kf5 Nf8) 70. Kf5 {[%emt 0:00:14] White threatens Kg6 and mate.} Nf6 {[%emt 0:00:31]} 71. Qh6+ {[%emt 0:00:12] White mates.} Kf7 {[%emt 0:00:12]} 72. Qg6+ {[%emt 0:00:07]} Kf8 {[%emt 0:00:07]} 73. Ke6 {[%emt 0:00:06] Weighted Error Value: White=0.35/Black=0.36} 1-0

[Event "GER-ch Youth-ODJM 2022 A"]
[Site "Willingen"]
[Date "2022.06.10"]
[Round "8.16"]
[White "Schwartz, Oliver"]
[Black "Frohnhäuser, Simon"]
[Result "1/2-1/2"]
[ECO "A50"]
[WhiteElo "1753"]
[BlackElo "1944"]
[Annotator "TA"]
[PlyCount "75"]
[EventDate "2022.06.05"]
[EventType "swiss"]
[EventRounds "9"]
[EventCountry "GER"]
[SourceTitle "playchess.com"]
[Source "ChessBase"]
[SourceQuality "1"]
[TimeControl "40/4500+30:900+30"]

{[%evp 14,75,33,28,41,37,61,66,58,54,64,55,86,45,78,73,75,37,40,50,85,82,65,58,57,79,102,81,72,58,84,41,146,145,133,85,120,129,184,184,220,218,386,376,451,417,559,572,939,933,896,917,1030,727,811,176,788,-346,-341,-509,-463,-438,-403,-968]} 1. d4 {[%emt 0:00:00]} Nf6 {[%emt 0:00:00]} 2. c4 {[%emt 0:00:00]} Nc6 {[%emt 0:00:00]} 3. Nf3 {[%emt 0:00:00]} e6 {[%emt 0:00:00]} 4. g3 {[%emt 0:00:00]} Bb4+ {[%emt 0:00:00]} 5. Bd2 {[%emt 0:00:00]} Qe7 {[%emt 0:00:00]} 6. Nc3 {[%emt 0:00:00]} d6 {[%emt 0:00:00]} 7. Bg2 {[%emt 0:00:00]} O-O {[%emt 0:00:00]} 8. O-O {[%emt 0:00:00]} Bxc3 {[%emt 0:00:00] E11: Bogo-Indian.} 9. Bxc3 {[%emt 0:00:00]} e5 {[%emt 0:00:00]} 10. d5 {[%emt 0:00:00]} Nb8 {[%emt 0:00:00] White is slightly better.} 11. Qc2 {[%emt 0:00:00] Prevents Ne4.} a5 {[%emt 0:00:00]} 12. b3 {[%emt 0:00:00]} Bg4 {[%emt 0:00:12]} 13. a3 {[%emt 0:03:19] [#]} Qd7 $146 {[%emt 0:11:35]} ({Predecessor:} 13... Bxf3 14. exf3 Nbd7 15. Rfe1 Qd8 16. Bh3 Re8 17. Rab1 Re7 18. Qd2 b6 19. f4 Qe8 {1-0 (90) Kveinys,A (2536)-Loew,G (2185) Fuerth 2014}) 14. e4 {[%emt 0:06:43]} Bh3 {[%emt 0:02:36]} 15. b4 {[%emt 0:02:35]} Bxg2 {[%emt 0:03:11]} 16. Kxg2 {[%emt 0:00:06]} Qg4 {[%emt 0:02:20]} 17. Nd2 {[%emt 0:02:18]} axb4 {[%emt 0:00:07]} 18. axb4 {[%emt 0:01:24]} Nbd7 {[%emt 0:00:21]} 19. f3 {[%emt 0:06:26]} Qg5 {[%emt 0:00:35]} 20. Nb3 {[%emt 0:02:58]} Nh5 {[%emt 0:04:26]} 21. Bd2 {[%emt 0:04:29]} Qg6 {[%emt 0:01:17]} 22. Na5 {[%emt 0:02:07]} b6 {[%emt 0:08:05]} (22... Rab8 $14) 23. Nc6 $36 {[%emt 0:01:36][%mdl 2048] White is on the roll.} Kh8 {[%emt 0:00:05]} 24. Ra2 {[%emt 0:06:41] White is more active.} (24. Ra7 $142 Rxa7 25. Nxa7) 24... Rxa2 {[%emt 0:12:05]} 25. Qxa2 {[%emt 0:00:06]} f5 {[%emt 0:00:06]} (25... Re8 $16) 26. Ne7 $1 $18 {[%emt 0:05:44][%csl LRf5,LRg6]} Qf7 {[%emt 0:04:28] Strongly threatening ...fxe4.} 27. Nxf5 {[%emt 0:00:27]} b5 $2 {[%emt 0:00:06]} (27... Nhf6 {keeps fighting.} 28. Qa7 Ne8) 28. Qa7 {[%emt 0:11:27]} Nb6 {[%emt 0:01:35] [#]} 29. Nxd6 {[%emt 0:08:59][%mdl 512]} Qd7 {[%emt 0:01:00]} (29... cxd6 30. Qxb6) 30. c5 {[%emt 0:01:11]} Na4 {[%emt 0:15:21]} 31. Qb7 {[%emt 0:03:48]} Nf6 {[%emt 0:04:37]} 32. Nxb5 {[%emt 0:01:18]} Nb2 {[%emt 0:08:24]} 33. Ra1 {[%emt 0:04:08]} Nc4 {[%emt 0:00:41]} 34. Bc1 $2 {[%emt 0:00:40]} (34. Ra8 Rg8 {[#]} 35. Nxc7 $1) 34... Ne8 $2 {[%emt 0:04:41]} (34... Qf7) 35. Ra8 $4 {[%emt 0:02:23][%mdl 8192]} (35. Ra2 $18) 35... Qf7 $19 {[%emt 0:00:09]} 36. f4 {[%emt 0:02:03]} (36. Qc6 $142 Qxf3+ 37. Kh3 Qh5+ 38. Kg2) 36... exf4 {[%emt 0:00:03]} 37. Bxf4 {[%emt 0:04:29]} g5 $1 {[%emt 0:00:21]} 38. Nd4 {[%emt 0:03:46][%mdl 32768] Weighted Error Value: White=0.97/Black=0.36. An unexpected result.} (38. d6 gxf4 39. Rxe8 Ne3+ 40. Kg1 fxg3 41. Rxf8+ Qxf8) (38. Nd6 $142 Ncxd6 39. cxd6 gxf4 40. Qa7 (40. dxc7 {gets mated.} fxg3 41. Rxe8 Qf3+ 42. Kh3 g2+ 43. Kh4 Qf4+ 44. Kh3 g1=N+ 45. Kg2 Qf3+ 46. Kxg1 Qf1#) 40... fxg3 41. Qd4+ (41. dxc7 {is a self mate.} Qf1+ 42. Kxg3 Rg8+ 43. Kh4 Qf4+ 44. Kh5 Qxh2#) 41... Kg8 42. Qe3 Qf2+ 43. Qxf2 gxf2 44. Kf1 Nxd6 45. Rxf8+ Kxf8 46. Kxf2 (46. e5 $2 Ne4 $19) 46... Nxe4+ 47. Ke3) 1/2-1/2

[Event "GER-ch Youth-ODJM 2022 A"]
[Site "Willingen"]
[Date "2022.06.10"]
[Round "8.17"]
[White "Reimer, Philip"]
[Black "Nguyen, Phuc Nhat"]
[Result "0-1"]
[ECO "D02"]
[WhiteElo "1977"]
[BlackElo "1809"]
[Annotator "TA"]
[PlyCount "88"]
[EventDate "2022.06.05"]
[EventType "swiss"]
[EventRounds "9"]
[EventCountry "GER"]
[SourceTitle "playchess.com"]
[Source "ChessBase"]
[SourceQuality "1"]
[TimeControl "40/4500+30:900+30"]

{[%evp 14,88,8,6,7,-75,-72,-60,-37,-70,-42,-58,-58,-56,-60,-70,-41,-70,-70,-100,-60,-156,-174,-187,-160,-176,-175,-156,-152,-136,-139,-216,-185,-202,-166,-214,-226,-206,-151,-230,-230,-423,-420,-464,-461,-543,-352,-678,-469,-477,-479,-759,-734,-676,-713,-644,-600,-609,-607,-693,-687,-698,-686,-800,-791,-759,-756,-862,-868,-1069,-1081,-1103,-1110,-1218,-1155,-1235,-1210]} 1. Nf3 {[%emt 0:00:00] ChessBase II} d5 {[%emt 0:00:00]} 2. d4 {[%emt 0:00:00]} Nf6 {[%emt 0:00:00]} 3. g3 {[%emt 0:00:00]} g6 {[%emt 0:00:00]} 4. Bg2 {[%emt 0:00:00]} Bg7 {[%emt 0:00:00]} 5. c4 {[%emt 0:00:00]} O-O {[%emt 0:00:00]} 6. cxd5 {[%emt 0:00:00]} Nxd5 {[%emt 0:00:00]} 7. e4 {[%emt 0:00:00]} Nb6 {[%emt 0:00:00]} 8. O-O {[%emt 0:00:00]} Bg4 $1 {[%emt 0:00:00] 8...Bg4 is better than 8...Nc6. D74: Fianchetto Grünfeld: Main Line (5 Nf3 0-0 6 cxd5 Nxd5 7 0-0).} 9. Be3 {[%emt 0:01:08]} (9. d5 $11 {keeps the balance.}) 9... c5 $17 {[%emt 0:00:00]} 10. d5 {[%emt 0:21:38]} Bxb2 {[%emt 0:09:31] Black is slightly better.} 11. Nbd2 {[%emt 0:00:09] [#]} Bxa1 $146 {[%emt 0:01:58]} ({Predecessor:} 11... Bxf3 12. Nxf3 Bxa1 13. Qxa1 N8d7 14. Bh6 f6 15. Ng5 Rf7 16. Nxf7 Kxf7 17. f4 Nf8 18. Rd1 e6 {1-0 (18) Raizman,M-Paulus,J Charleville Mezieres 1952 EXT 2009 [ChessBase II]}) 12. Qxa1 {[%emt 0:00:06]} f6 {[%emt 0:00:26] Prevents Ne5.} 13. Bxc5 {[%emt 0:04:14]} Na6 {[%emt 0:05:16][%cal Bb8a6,Ba6b4,Bb4c2,Bc2a3,Ba3b5,Bb5d6][%mdl 32]} 14. Be3 {[%emt 0:00:36]} Rc8 {[%emt 0:07:44]} 15. Bh6 {[%emt 0:02:12]} Re8 {[%emt 0:01:48] Black continues to play with concentration.} 16. Re1 {[%emt 0:05:53][%cal Of3e5]} Nb4 {[%emt 0:03:23] [#] Threatens to win with ...Nc2.} 17. Qb1 {[%emt 0:03:32]} (17. Rb1 $1 $15 Nc2 18. Qb2) 17... Nc2 {[%emt 0:02:57]} 18. Rc1 {[%emt 0:02:06]} Na3 {[%emt 0:02:11]} 19. Qb2 {[%emt 0:00:36]} Rxc1+ {[%emt 0:01:33]} 20. Qxc1 {[%emt 0:00:04]} Nb5 {[%emt 0:07:13]} 21. Qb2 {[%emt 0:10:38]} Nd6 {[%emt 0:04:36]} 22. Nd4 {[%emt 0:13:54]} (22. h3 $17 {is a better defense.} Bd7 23. Bf4) 22... Qc8 {[%emt 0:11:21]} 23. Bf1 {[%emt 0:04:27]} Bd7 {[%emt 0:17:21]} 24. h4 {[%emt 0:03:26]} (24. Bf4 {might work better.}) 24... Na4 $19 {[%emt 0:00:36][%cal Bb6a4,Ba4c5,Bc5e4][%mdl 32]} 25. Qb1 {[%emt 0:00:42]} Qc3 {[%emt 0:04:45]} 26. N2f3 {[%emt 0:00:24]} (26. Nb5 $17 Nxb5 27. Bxb5) 26... Qb2 {[%emt 0:01:20]} 27. Qd3 {[%emt 0:00:18]} (27. Qe1 Nf7 28. Bc1) 27... Nc5 {[%emt 0:00:17]} 28. Qe3 {[%emt 0:00:46]} Ncxe4 {[%emt 0:02:27]} 29. h5 {[%emt 0:00:39]} Qc3 {[%emt 0:01:18]} 30. Qe2 $2 {[%emt 0:06:16]} (30. hxg6 hxg6 31. Bd3) 30... Bg4 {[%emt 0:00:24] Black is clearly winning.} 31. hxg6 {[%emt 0:00:14]} hxg6 {[%emt 0:00:22] [#] ...g5 is the strong threat.} 32. Kh2 {[%emt 0:00:35]} (32. Be3 $142) 32... Qxd4 {[%emt 0:00:22]} 33. Nxd4 {[%emt 0:00:19]} Bxe2 {[%emt 0:00:05]} 34. Bxe2 {[%emt 0:00:09]} Nxf2 {[%emt 0:00:14]} 35. Kg2 {[%emt 0:00:20]} Nfe4 {[%emt 0:00:15] Hoping for ...g5.} 36. Be3 {[%emt 0:00:32]} Rc8 {[%emt 0:02:11]} 37. g4 {[%emt 0:01:01]} Nc3 {[%emt 0:01:03]} 38. Bd3 {[%emt 0:00:09]} Nxd5 {[%emt 0:00:24]} 39. Bd2 {[%emt 0:01:16]} Kf7 {[%emt 0:00:14]} 40. Kf3 {[%emt 0:00:19]} e5 {[%emt 0:00:13][%cal Be7e5,Be5e4][%mdl 32]} 41. Nb3 {[%emt 0:15:38]} f5 {[%emt 0:16:28] And now ...e4+ would win.} 42. gxf5 {[%emt 0:01:32]} gxf5 {[%emt 0:00:04] White must now prevent ...e4+.} 43. Bb1 {[%emt 0:00:11]} e4+ {[%emt 0:00:25]} 44. Ke2 {[%emt 0:00:08]} Nc3+ {[%emt 0:00:11] Weighted Error Value: White=0.63/Black=0.22 (precise)} 0-1